{"text_format":"1","workbook":"xlsx","n_sheets":3,"sheets":["Лист1","Лист2","Лист3"],"not_rendered":{"charts":0,"images":0,"macros":1,"external_links":0,"defined_names":0,"comments":0,"pivot_tables":0},"unopened":[],"bounds":{"document_bytes":16777216,"sheet_cells":100000,"rows_first":2000,"rows_last":500,"rows_between":2000,"halvings":0,"cell_chars":16384,"cell_head_chars":4096},"cells_cut":0,"cells_raw":0,"read":"whole","date_system":"1900"}

{"sheet":"Лист1","index":0,"n_rows":389,"n_cols":4,"rows_kept":389,"cut":false,"hidden":false,"merged":[]}
[]
["Ай-Эм-Си Тек",{"$f":"FuzzyVLOOKUP(A2,$D$4:$D$389,0,60)","v":"Представительство АО \"Ай-Эм-Си Тек\""},"Договор №0963/11-Д на оказание услуг от 09.03.11"]
["АКСЕНС ВОСТОК",{"$f":"FuzzyVLOOKUP(A3,$D$4:$D$389,0,60)","v":"MISS"},"Договор №0832/10-Д на оказание услуг от 24.02.10 г"]
["Агенство Фемида ООО","MISS","Договор №0535/09-Д на оказание услуг от 16.07.2009","\"КОМФИТРЕЙД  СА\" (Швейцария) Представительство акционерного общества"]
["Адвокатское бюро Борисова","Адвокатское бюро Борисова","Договор №0637/09-Д на оказание услуг от 22.09.2009","Представительство французской телекомпании (акционерного общества ) \"ФРАНС ТЕЛЕВИЗЬОН\" (Корпункт)"]
["Администрация Тамбовской области","Администрация  Тамбовской области","Договор №0292/09-Д на оказание услуг от 16.07.2009","Представительство \"Австрийские авиалинии\" (Австрия)"]
["Алиталия-Компания Аэреа Итальяна СПА","Представительство АО \"Алиталия-Компания Аэреа Итальяна СПА\"","Договор №0770/09-Д на оказание услуг от 21.10.09","Общество с ограниченной ответственностью \"Автоклавмедсервис\""]
["Альфа Экспедишн Демайнинг ООО","MISS","Договор №0831/10-Д на оказание услуг от 17.02.10 г","Общество с ограниченной ответственностью \"Агенство Фемида\""]
["Арсенал","MISS","Договор №0647/09-Д на оказание услуг от 16.07.09","Закрытое акционерное общество \"Агентство Сетевых Технологий\""]
["Аспект","MISS","Договор №0851/10-Д на оказание услуг от 01.04.10","Общество с ограниченной ответственностью \"Управляющая компания \"Агрокультура\""]
["АТУ ФРАНС","MISS","Договор №0960/11-Д на оказание услуг от 28.02.11","Адвокат Казанцев Алексей Вячеславович"]
["Байто А.Н.","MISS","Договор №1051/13-Д на оказание услуг от 22.07.13 г","Адвокатское бюро Борисова"]
["Бизнес-Логистик ООО","MISS","Договор №0314/09-Д на оказание услуг от 01.08.2009","Общество с ограниченной ответственностью «АДЕПТУС»"]
["Бонн Интернейшенл","MISS","Договор №0966/11-Д на оказание услуг от 14.03.11 г","Представительство Корпоративного общества с ограниченной ответственностью \"АДЖЕНЦИЯ ПЕР ЛА РУССИЯ С.Р.Л.\" (Италия)"]
["Бюро экспертных услуг","MISS","Договор №1008/11-Д на оказание услуг от 15.06.11","г-н Адиб Аль-Саед"]
["Бэст Солюшнз","MISS","Договор №1049/13-Д на оказание услуг от 28.06.13 г","Администрация  Тамбовской области"]
["Валеант","ООО \"ВАЛЕАНТ\"","Договор №1048/13-Д на оказание услуг от 24.06.13г","Московское представительство \"Ай Эйч Ай Корпорация\" (Япония)"]
["ВебМани.Ру","MISS","Договор №0871/10-Д на оказание услуг от 01.06.10 г","Представительство АО \"Ай-Эм-Си Тек\""]
["Веденин Д.А.","MISS","Договор№1036/12-Д на оказание услуг от 06.11.12г","Общество с ограниченной ответственностью \"Аксенс Восток\""]
["Вест Фарбен","ООО \"Вест Фарбен\"",false,"г-н Александров Александре"]
["Виктория - Ф ООО","MISS","Договор №0820/10-Д на оказание услуг от 08.02.10","Представительство АО \"Алиталия-Компания Аэреа Итальяна СПА\""]
["ВОК - ТСМ ООО","MISS","Договор №0310/09-Д на оказание услуг от 16.07.2009","Представительство ООО «Аллайд Телесис Австрия Гмбх»"]
["Всероссийская полицейская ассоциация (ВПА)","MISS","Договор №0926/10-Д на оказание услуг от 19.10.2010","Общество с ограниченной ответственностью   \"Альфа Консалтинг\""]
["ВымпелКом","MISS","Договор №0666/09-Д на оказание услуг от 01.09.09 г","Представительство акционерной компании с ограниченной ответственностью «Альфа Трейдинг Лимитед»"]
["Вяртсиля Восток ООО","MISS","Договор №0872/10-Д на оказание услуг от 01.06.10 г","Общество с ограниченной ответственностью \"Альфа Экспедишн Демайнинг\""]
["ГДФ СЮЭЗ\" (Франция) в Москве пр-во","Представительство акционерного общества \"ГДФ СЮЭЗ\" в Москве","Договор №0589/09-Д на оказание услуг от 16.07.2009","Общество с ограниченной ответственностью \"АмРусТранс\""]
["Гедеон Рихтер представительство","Представительство ОАО \"Гедеон Рихтер\" (Венгрия) г. Москва","Договор №0621/09-Д на оказание услуг от 16.07.09","Общество с ограниченной ответсвенностью \"АН-ЖЕ\""]
["Горленко А.А.","MISS","Договор №1044/13-Д на оказание услуг от 03.04.13г","ООО \"Управляющая компания \"Аптечные традиции\""]
["Деловой Иран","ООО \"Деловой Иран\"","Договор №1035/12-Д на оказание услуг от 24.09.12г","Закрытое акционерное общество \"АПТЕЧНЫЙ ДОМ\""]
["Делта Экспортс ПТЕ. Лтд пр-во","Представительство фирмы \"Делта Экспортс ПТЕ. Лтд\" Республика Сингапур","Договор №1026/12-Д на оказание услуг от 06.06.2012","Общество с ограниченной ответственностью «Армарусс»"]
["Джапан Тул Сервис Представительство ООО","MISS","Договор №0576/09-Д на оказание услуг от 16.07.2009","Общество с ограниченной ответственностью \"Арога\""]
["ДИАНА-ТРЕСТ","MISS","Договор №1028/12-Д на оказание услуг от 16.07.12 г","Общество с ограниченной ответственностью \"Арсенал\""]
["Дриссен Глобал Сервис","ЗАО \"Дриссен Глобал Сервис\"","Договор №1042/13-Д на оказание услуг от 26.03.2013","Закрытое акционерное общество \"АСПЕКТ\""]
["Добрый Ангел","MISS","Договор №1054/13-Д на оказание услуг от 23.07.13 г","Представительство Объединения с экономической целью АТУ ФРАНС, Агенство по развитию Туризма во Францию (Франция) г. Москва"]
["Европейское туристическое страхование ЗАСО","Закрытое акционерное страховое общество \"Европейское Туристическое Страхование\"","Договор №0580/09-Д на оказание услуг от 01.08.2009","г-н Байто Анатолий Насырович"]
["ЕвроПейнтс","ООО \"ЕвроПейнтс\"","Договор №1040/13-Д на оказание услуг от 01.02.13г","Закрытое акционерное общество Банк \"СОВЕТСКИЙ\"  Филиал \"Московский\""]
["ИНЖЕНЕРНЫЙ ДОМ ПАЛАДИН","MISS","Договор №0950/11-Д на оказание услуг от 14.01.11 г","Коммерческий акционерный банк \"Банк Сосьете Женераль Восток\" (закрытое акционерное общество)"]
["Интермарк-Интернешнел Маркетинг оф Кемиклз Б.В.","Представительство Компании \"ИНТЕРМАРК-Интернешнел Маркетинг оф Кемиклз Б.В.\"","Договор №0718/09-Д на оказание услуг от 16.07.09","Представительство Частной компании с ограниченной ответственностью \"Бауш энд Ломб Б.В.\""]
["Информационные коммуникации и безопасность ООО","MISS","Договор №0549/09-Д на оказание услуг от 01.08.2009","г-н Бентивенья Пьетро"]
["Инфра Проект Девелопмент Русланд","Общество с ограниченной ответственностью \"Инфра Проект Девелопмент Русланд\"","Договор №0843/10-Д на оказание услуг от 01.03.10 г","Общество с ограниченной ответственностью \"Беталогистик»"]
["ГлавУпДК","MISS","Договор эксплуатации  А2121118 от 27.06.2012 г.","Общество с ограниченной ответственностью «Бизнес-Логистик»"]
["ГлавУпДК","MISS","Договор эксплуатации  А2121118 от 27.06.2012 г.","Закрытое акционерное общество \"Билантлия\""]
["Каннон Евразия ООО","MISS","Договор №0454/09-Д на оказание услуг от 16.07.2009","Общество с ограниченной ответственностью \"Билдинг Брокер\""]
["КИМ Владимир","г-н КИМ Владимир","Договор №0937/10-Д на оказание услуг от 03.12.10 г","Общество с ограниченной ответственностью  \"Бонн Интернейшенл\""]
["Китайские восточные авиалинии АООО","Представительство \"АООО Китайские восточные авиалинии\"","Договор №0536/09-Д на оказание услуг от 16.07.2009","Общество с ограниченной ответственностью \"Брокер Логистик\""]
["Клименко Д.А.","MISS","Договор №1050/13-Д на оказание услуг от 22.07.13 г","Общество с ограниченной ответственностью \"Бутоньерка\""]
["Коннектика  ООО","MISS","Договор №0993/11-Д на оказание услуг от 16.05.2011","Общество с ограниченной ответсвенностью \"Бэст Солюшнз\""]
["Контейнерный Сервис","MISS","Договор №0956/11-Д на оказание услуг от 07.02.11","Бюро Культуры Посольства Арабской Республики Египет"]
["Корпуснов С.В.","MISS","Договор №1031/12-Д от 26.07.12г","Общество с ограниченной ответственностью \"Бюро экспертных услуг\""]
["Коэклеричи Раша","MISS","Договор №0912/10-Д на оказание услуг от 06.09.2010","Общество с ограниченной ответственностью \"В.Ф. ТАНКЕР\""]
["КОМФИТРЕЙД СА АО Швейцарской конфедерации","Акционерное общество \"КОМФИТРЕЙД СА\"  Швейцарской конфедерации","Договор №1047/13-Д на оказание услуг от 17.06.2013","ООО \"ВАЛЕАНТ\""]
["Краснова Г.А.","MISS","Договор №1053/13-Д на оказание услуг от 22.07.13 г","г-н Валерио Бернини"]
["Кукушкина И.А.","MISS","Договор №0528/09-Д на оказание услуг от 16.07.2009","Общество с ограниченной ответственностью \"Валлурек и Маннесманн Рус\""]
["Лайтхаус Россия БВ","MISS","Договор №0648/09-Д на оказание услуг от 16.07.09","Общество с ограниченной ответственностью \"ВанКонтейнер\""]
["Леонардо Павони","MISS","Договор №0809/10-Д на оказание услуг от 01.01.10 г","Общество с ограниченной ответственностью \"ВебМани.Ру\""]
["Манаенкова И.В.","MISS","Договор №0750/09-Д на оказание услуг от 19.10.09","г-н Веденин Денис Александрович"]
["Мартину Даниел","MISS","Договор №0989/11-Д на оказание услуг от 29.04.11","Закрытое акционерное общество \"Управляющая компания \"Вектрон\""]
["Марубени корпорейшн","MISS","Договор №0799/09-Д на оказание услуг от 15.12.09","ООО \"Вест Фарбен\""]
["Медведев С.В.","MISS","Договор №0973/11-Д на оказание услуг от 11.04.11 г","Представительство частной компании с ограниченной ответственностью \"Ви.Эс. ВизитСвиден АБ\""]
["Метсялиитто Осуускунта (Финляндия), г.Москва пр-во кооператива","MISS","Договор №0315/09-Д на оказание услуг от 16.07.2009","Общество с ограниченной ответственностью \"Визави Консалтинг\""]
["Мультимодальный Контейнерный Сервис ООО","MISS","Договор №1014/11-Д на оказание услуг от 01.07.11","Общество с ограниченной ответственностью \"Виктория - Ф\""]
["Нефтьгазстройинвест ЗАО","MISS","Договор №0585/09-Д на оказание услуг от 01.08.2009","Общество с ограниченной ответственностью \"Вино и Розы\""]
["Никкей Московский корпункт газеты","Московский корпункт газеты \"Никкей\"","Договор №0558/09-Д на оказание услуг от 16.07.2009","Закрытое акционерное общество \"ВИТМ\""]
["Норвежская Радиовещательная Корпорация ( с 01.01.2013г)","MISS","Договор №1038/13-Д на оказание услуг от 09.01.2013","Общество с ограниченной ответственностью \"ВМР\""]
["Норвежско Российская Торговая Палата","MISS","Договор №1043/13-Д на оказание услуг от 28.03.2013","ЗАО \"Внебиржевые рынки\""]
["НПО Высокоточные системы и технологии","Закрытое акционерное общество \"НПО Высокоточные системы и технологии\"","Договор №0867/10-Д на оказание услуг от 24.05.10","Закрытое акционерное общество \"Внебиржевые рынки\""]
["Осантрико Лимитед Представительство компании с ограниченной ответственностью",{"$f":"FuzzyVLOOKUP(A67,$D$4:$D$389,0,60)","v":"Представительство компании с ограниченной ответственностью «Осантрико Лимитед»"},"Договор №0455/09-Д на оказание услуг от 16.07.2009","Военное бюро при Посольстве Алжирской Народной Демократической Республики в Москве"]
["Павлова Анна Николаевна","г-жа Павлова Анна Николаевна","Договор №1004/11-Д на оказание услуг от 08.06.11","Закрытое акционерное  общество \"ВОЗДУХТРАНС-СЕРВИС\""]
["Панченко Л.П.","MISS","Договор №1052/13-Д на оказание услуг от 22.07.13 г","Общество с ограниченной ответственностью «ВОК - ТСМ»"]
["Пеуру Московский филиал ООО","MISS","Договор №0326/09-Д на оказание услуг от 16.07.2009","г-н Воронин Алексей Валентинович"]
["ПЕЯ Интернешнл Б.В.","MISS","Договор №0947/10-Д на оказание услуг от 31.12.10 г","Московское региональное отделение Общероссийской общественной организации \"Всероссийская полицейская ассоциация (ВПА)\""]
["Посольство Уругвай","Посольство Уругвай","Договор №0631/09-Д на оказание услуг от 01.08.2009","Открытое акционерное общество \"Вымпел-Коммуникации\""]
["ПРОМИФ Инк ООО","MISS","Договор №0823/10-Д на оказание услуг от 08.02.10","Общество с ограниченной ответственностью \"ВЭД-Сервис\""]
["Промстройторг","MISS","Договор №0756/09-Д на оказание услуг от 16.07.09","Общество с ограниченной ответственностью \"Вяртсиля Восток\""]
["Пойдашева Е.А.","MISS","Договор №1046/13-Д на оказание услуг от 27.05.2013","г-н Гаскин Виталий Витальевич"]
["РЕПЛЕК ФАРМ ООО","MISS","Договор №0833/10-Д на оказание услуг от 01.03.2010","Представительство акционерного общества \"ГДФ СЮЭЗ\" в Москве"]
["Русское зерно ООО","MISS","Договор №0311/09-Д на оказание услуг от 16.07.2009","Закрытое акционерное общество \"ГЕДЕОН РИХТЕР - РУС\""]
["Русьинтерн","MISS","Договор №0591/09-Д на оказание услуг от 16.07.2009","Представительство ОАО \"Гедеон Рихтер\" (Венгрия) г. Москва"]
["Руцкой Д.А","MISS","Договор №1033/12-Д на оказание услуг от 01.10.12г","Открытое акционерное общество \"Гидроремонт-ВКК\""]
["Сантэн Московское представительство","MISS","Договор №0584/09-Д на оказание услуг от 16.07.2009","Закрытое акционерное общество  \"Глобус-Телеком\""]
["Скоттиш Энтерпрайз, Великобритания Представительство компании","Московское представительство компании «Скоттиш Энтерпрайз», Великобритания","Договор №0313/09-Д на оказание услуг от 31.07.2009","г-жа Гончарова Наталья Олеговна"]
["Слепак Г.Б.","MISS","Договор №1025/12-Д от 01.06.2012г","г-н Горленко  Андрей  Анатольевич"]
["СОВМЕД ПЛЮС ООО Международный медицинский консультационный центр","Общество с ограниченной ответственностью Международный медицинский консультационный центр \"СОВМЕД ПЛЮС\"","Договор №0581/09-Д на оказание услуг от 16.07.2009","Общество с ограниченной ответственностью мастерская \"Городская Волна\""]
["Сивенкова В.В.","MISS","Договор №1045/13-Д на оказание услуг от 18.05.2013","Общество с ограниченной ответственностью \"Гранд Сити\""]
["СТАРТ ПАРК","ООО \"СТАРТ ПАРК\"","Договор №1034/12-Д на оказание услуг от 01.10.12г","Общество с ограниченной ответственностью \"Гринкар\""]
["Тайрику Трединг Ко, Лтд Представительство Япония в Москве","MISS","Договор №0506/09-Д на оказание услуг от 16.07.2009","Общество с ограниченной ответственностью \"ГСВ Лаборатории\""]
["ТВ Асахи корпорейшен","\"ТВ Асахи корпорейшен\"","Договор №0688/09-Д на оказание услуг от 16.07.09","г-н Гусаков Александр Иванович"]
["ТГК","ООО \"ТГК\"","Договор №1021/12-Д от 10.01.2012г","г-н Д. Марра"]
["ТСМ Коммуникейшн Гес.мбХ Представительство ООО, Австрия","MISS","Договор №0559/09-Д на оказание услуг от 16.07.2009","Г-н Д. Падова"]
["Труняев А.Н.","MISS","Договор №1037/12-Д на оказание услуг от 06.12.12г.","Общество с ограниченной ответственностью «Даймонд Медиа»"]
["ФестАльпине Ойрошталь ГмбХ Пр-во ООО Австрия","Представительство ООО \"ФестАльпине Ойрошталь ГмбХ\", Австрия","Договор №0980/11-Д на оказание услуг от 19.04.11","Представительство фирмы \"ДАМКО Б.В.\""]
["Фитнес система ООО","MISS","Договор №0714/09-Д на оказание услуг от 16.07.09","г-жа Даниэль Марчек"]
["ХЛ Кемикалс","MISS","Договор №0971/11-Д на оказание услуг от 28.03.11","Представительство компании \"ДЕГРЕМОН\""]
["Центр изучения английского языка НОУ","MISS","Договор №0523/09-Д на оказание услуг от 16.07.2009","Представительство Акционерного Общества Упрощенного Типа \"Дегремон Рюси\" (Франция)"]
["ЭЛОНГ КЕМИКАЛЗ","MISS","Договор №0981/11-Д на оказание услуг от 19.04.11","ООО \"Деловой Иран\""]
["Юридическая компания ВПК","MISS","Договор №0954/11-Д на оказание услуг от 25.01.11","Представительство фирмы \"Делта Экспортс ПТЕ. Лтд\" Республика Сингапур"]
["Юридический центр \"Вектор Право\"","Общество с ограниченной ответственностью \"Юридический центр \"Вектор Право\"","Договор №0757/09-Д на оказание услуг от 01.10.09","Представительство Компании с Ограниченной ответсвенностью \"Демптон Холдинг, Корп.\""]
["Воронин А.В.","MISS","Договор №1055/13-Д на оказание услуг от 29.07.13 г","Общество с ограниченной ответственностью \"Десорро\""]
["НОМАКОНТ ООО","MISS","Договор №1056/13-Д на оказание услуг от 01.08.2013","Представительство Общества с ограниченной ответственностью \"Джапан Тул Сервис\""]
["Ткаченко В.А.","MISS","Договор №1057/13-Д на оказание услуг от 09.08.13г.","Представительство компании \"ДжейВиСи Интернейшнл  (Европа)  Гезельшафт м.б.х.\""]
["Специализированная транспортно-экспедиторская компания","ООО \"Специализированная транспортно-экспедиторская компания\"","Договор №1058/13-Д на оказание услуг от 01.08.13","Представительство АО «Джи Петро АГ»"]
["Косасих Нананг","MISS","Договор №1059/13-Д на оказание услуг от 27.08.13 г","Представительство корпорации \"Джон Сноу, Инкорпорейтед\" США"]
["Чассем Нзале Трифен Вальтер","г-н Чассем Нзале Трифен Вальтер","Договор №1041/13-Д на оказание услуг от 06.03.13г","г-н Дзамбуко А."]
["ФРАНС ТЕЛЕВИЗЬОН","MISS","Договор №1061/13-Д на оказание услуг от 01.10.13г.","Представительство Японского агентства новостей \"ДЗИ-ДЗИ ПРЕСС. ЛТД\""]
["СпУ-555","MISS","Договор подряда №86-П/13 от 02.10.2013 г.","Закрытое акционерное общество \"ДиаКлон\""]
[null,null,null,"Общество с ограниченной ответственностью \"ДИАНА-ТРЕСТ\""]
[null,null,null,"Представительство компании с ограниченной ответственностью \"ДИБД ОМИР А/С\""]
[null,null,null,"Общество с ограниченной ответственностью \"Дивиар\""]
[null,null,null,"Московское Представительство Общества по производству, маркетингу и услугам экспорт импорт \"ДИСАКО\" ООО, Скопье (Македония)"]
[null,null,null,"Общество с ограниченной ответственностью \"ДИЦМЕН ТЕХНОЛОДЖИС\""]
[null,null,null,"Общество с ограниченной ответственностью \"ДЛФ-Трифолиум\""]
[null,null,null,"Закрытое акционерное общество \"Добрый Ангел\""]
[null,null,null,"Представительство фирмы \"Дорнье МедТех Европа Гмбх\" (ФРГ)"]
[null,null,null,"ЗАО \"Дриссен Глобал Сервис\""]
[null,null,null,"г-н П.А.А. Дут"]
[null,null,null,"ООО \"ЕвроПейнтс\""]
[null,null,null,"Закрытое акционерное страховое общество \"Европейское Туристическое Страхование\""]
[null,null,null,"Закрытое акционерное общество АУДИТОРСКАЯ ФИРМА \"ЗЕРКАЛО\""]
[null,null,null,"Общество с ограниченной ответственностью \"ИЛФ Инжиниринг и Проектное управление\""]
[null,null,null,"Закрытое акционерное общество \"Инвестиционная компания ШТОЕРМАНН\""]
[null,null,null,"Закрытое акционерное общество \"Инвестиционный траст\""]
[null,null,null,"Общество с ограниченной ответственностью \"ИНЖЕНЕРНЫЙ ДОМ ПАЛАДИН\""]
[null,null,null,"Общество с ограниченной ответственностью \"ИнКомТраст\""]
[null,null,null,"Общество с ограниченной ответственностью \"Институт Здоровья Семьи\""]
[null,null,null,"Представительство компании  \"Интек Трейд Лтд\""]
[null,null,null,"Общество с ограниченной ответственностью \"Интеллектуальные ресурсы\""]
[null,null,null,"Общество с ограниченной ответственностью \"ИнтерАкадем\""]
[null,null,null,"Общество с ограниченной ответственностью \"Интерджет\""]
[null,null,null,"Представительство Компании \"ИНТЕРМАРК-Интернешнел Маркетинг оф Кемиклз Б.В.\""]
[null,null,null,"Общество  с ограниченной ответственностью \"Интернешнл Хелскэр Сервисез Восток\""]
[null,null,null,"Общество с ограниченной ответственностью \"Интернэшнл Трэвел и Бизнес Сервис\""]
[null,null,null,"Закрытое акционерное общество \"Интерсильверлайн\""]
[null,null,null,"Информационное бюро НАТО при пос-ве Бельгии"]
[null,null,null,"Автономная некоммерческая организация \"Информационно-исследовательский Институт Здоровья Семьи\""]
[null,null,null,"Общество с ограниченной ответственностью «Информационные коммуникации и безопасность»"]
[null,null,null,"Закрытое акционерное общество \"Инфотек-Балтика М\""]
[null,null,null,"Общество с ограниченной ответственностью \"Инфра Проект Девелопмент Русланд\""]
[null,null,null,"Представительство Национальной авиакомпании Исламской республики Иран \"Иран Эйр\""]
[null,null,null,"Представительство фирмы \"ИТОЧУ Корпорейшн\" (Япония) г. Москва"]
[null,null,null,"Общество с ограниченной ответственностью \"Канебо Косметикс Рус\""]
[null,null,null,"Общество с ограниченной ответственностью «Каннон Евразия»"]
[null,null,null,"г-н Кевин Никс"]
[null,null,null,"Представительство ЗАО \"Кей Ти Эйч Эс\" (Республика Корея)"]
[null,null,null,"Представительство компании «КЕМЛУБ ИНТЕРНЭШНЛ, ИНК»"]
[null,null,null,"г-н КИМ Владимир"]
[null,null,null,"Общество с ограниченной ответственностью \"Кимайл\""]
[null,null,null,"Представительство \"АООО Китайские восточные авиалинии\""]
[null,null,null,"г-н Клименко Дмитрий Анатольевич"]
[null,null,null,"Представительство \"КЛМ Королевские голландские авиалинии\""]
[null,null,null,"Московское представительство фирмы \"Коммершал Металз Компани\""]
[null,null,null,"Московское представительство \"КОМПАНИЯ АЛЬ-НАХАСКУ ПО ИМПОРТУ\" (Египет)"]
[null,null,null,"Акционерное общество \"КОМФИТРЕЙД СА\"  Швейцарской конфедерации"]
[null,null,null,"Представительство \"Конезис Интернешенел Лтд\""]
[null,null,null,"Общество с ограниченной ответственностью \"Коннектика\""]
[null,null,null,"Общество с ограниченной ответственностью \"Контейнерный Сервис\""]
[null,null,null,"Общество с ограниченной ответственностью \"Контейнерный терминал Купавна\""]
[null,null,null,"г-н Корпуснов Сергей Витальевич"]
[null,null,null,"г-н Косасих Нананг"]
[null,null,null,"Общество с ограниченной ответственностью \"Коттон Профит\""]
[null,null,null,"Представительство фирмы «Коэклеричи Коал энд Фьюэлс СПА» (Италия)"]
[null,null,null,"Общество с ограниченной ответственностью \"Коэклеричи Раша\""]
[null,null,null,"г-жа Краснова Галина Александровна"]
[null,null,null,"Представительство фирмы \"Кристалл Пул Лтд\""]
[null,null,null,"Закрытое акционерное общество \"КТС\""]
[null,null,null,"г-жа Кукушкина Ирина Алексеевна"]
[null,null,null,"Культурный Центр при Посольстве Исламской Республики Иран в РФ"]
[null,null,null,"Закрытое акционерное общество «Экспертная группа «КУТРИ»"]
[null,null,null,"Представительство Общества с ограниченной ответственностью \"Лайтхаус Россия БВ\""]
[null,null,null,"Представительство Международной Предпринимательской компании \" ЛАРК КОМПАНИ \""]
[null,null,null,"Московский центр тенологии \"ЛГ Электроникс Инк.\""]
[null,null,null,"г-н Леонардо Павони"]
[null,null,null,"Общество с ограниченной ответственностью \"Логстор\""]
[null,null,null,"Общество с ограниченной ответственностью \"ЛОКОИНЖИНИРИНГ\""]
[null,null,null,"ООО \"ЛОКОТРЕЙДИНГ\""]
[null,null,null,"г-н Луис Качо"]
[null,null,null,"г-н ЛУИС КЛАУДИО ДА ФОНСЕКА БРАГАНСА ПИНЬЕЙРО"]
[null,null,null,"г-н Лукичев Александр Викторович"]
[null,null,null,"Г-н М. Клариция"]
[null,null,null,"Представительство японской Акционерной Компании \"МАЕКАВА МФГ.Ко.Лтд\""]
[null,null,null,"Представительство общества с ограниченной ответственностью \"МАКИНО Европа ГмбХ\""]
[null,null,null,"г-н Малышев Владимир Геннадьевич"]
[null,null,null,"г-жа Манаенкова Ирина Валентиновна"]
[null,null,null,"г-н Марко Антонио де Фрейтас Коутиньо"]
[null,null,null,"г-н Мартину  Даниел"]
[null,null,null,"Представительство фирмы \"Марубени Корпорейшн\" (Япония) г. Москва"]
[null,null,null,"г-н Мархиус Кардозо Нетто"]
[null,null,null,"г-н Медведев Сергей Владимирович"]
[null,null,null,"Союз общественных объединений \"Международная ассоциация ветеранских организаций\""]
[null,null,null,"Общество с ограниченной ответственностью «Металлмашоборудование»"]
[null,null,null,"Общество с ограниченной ответственностью \"Мется Борд\""]
[null,null,null,"Общество с ограниченной ответственностью  \"Мется Тиссью\""]
[null,null,null,"Представительство кооператива \"Метсялиитто Осуускунта\"(Финляндия), г.Москва"]
[null,null,null,"г-н Мигель Бауса Море"]
[null,null,null,"Общество с ограниченной ответственностью \"МИКРО КАПИТАЛ\" ВЕЛИКОГО ГЕРЦОГСТВА ЛЮКСЕМБУРГ"]
[null,null,null,"Общество с ограниченной ответственностью \"МИРСАН\""]
[null,null,null,"г-н Михальченко Виталий Александрович"]
[null,null,null,"Московское бюро телекомпании\"ТВ Асахи корпорейшн\""]
[null,null,null,"Общество с ограниченной ответственностью \"Юридическая компания-Международные технологии безопасности бизнеса\""]
[null,null,null,"Общество с ограниченной ответственностью \"Мультимодальный Контейнерный Сервис\""]
[null,null,null,"Общество с ограниченной ответственностью  \"МФИТНЕС\""]
[null,null,null,"г-н Наиель М.А. Алсарайрех"]
[null,null,null,"НАРОДНОЕ БЮРО ВЕЛИКОЙ СОЦИАЛИСТИЧЕСКОЙ НАРОДНОЙ ЛИВИЙСКОЙ АРАБСКОЙ ДЖАМАХИРИИ"]
[null,null,null,"г-жа Невмержицкая Наталья Викторовна"]
[null,null,null,"Закрытое акционерное общество \"Нефтьгазстройинвест\""]
[null,null,null,"Московский корпункт газеты \"Никкей\""]
[null,null,null,"ЗАО \"Новый алгоритм\""]
[null,null,null,"Общество с ограниченной ответственностью «НОМАКОНТ»"]
[null,null,null,"Московское бюро Норвежской Радиовещательной Корпорации"]
[null,null,null,"Норвежская Радиовещательная Корпорация"]
[null,null,null,"Представительство ассоциации \"Норвежско Российская Торговая Палата Б.А.\" (Норвегия) в Российской Федерации"]
[null,null,null,"Закрытое акционерное общество \"НПО Высокоточные системы и технологии\""]
[null,null,null,"Общество с ограниченной ответственностью \"НТС\""]
[null,null,null,"Представительство \"Нэшинал Авиэйшин Компани оф Индия Лимитед\", г. Москва"]
[null,null,null,"Общество с  ограниченной ответственностью \"ОБЕРОН\""]
[null,null,null,"Общество с ограниченной ответственностью \"Ойлер Гермес Кредит Менеджмент\""]
[null,null,null,"г-н Окуяма Масаси"]
[null,null,null,"Представительство фирмы \"ОМВ Акциенгезельшафт\""]
[null,null,null,"ООО\"Гранд\""]
[null,null,null,"Общество с ограниченной ответственностью \"Ориент Трейд\""]
[null,null,null,"Представительство компании с ограниченной ответственностью «Осантрико Лимитед»"]
[null,null,null,"Отдел атомной энергии Посольства Республики Индии в Москве"]
[null,null,null,"г-жа Оттавиано Беатриче"]
[null,null,null,"Общество с ограниченной ответственностью \"Офис-ДК\""]
[null,null,null,"Г-н П. Мадджи"]
[null,null,null,"г-н П.Д.Фре"]
[null,null,null,"г-жа Павлова Анна Николаевна"]
[null,null,null,"Общество с ограниченной ответственностью «Паладин-Л»"]
[null,null,null,"Закрытое акционерное общество \"Панальпина Уорлд Транспорт ЗАО\""]
[null,null,null,"г-жа Панченко Любовь Петровна"]
[null,null,null,"Общество с ограниченной ответственностью  \"Параллель\""]
[null,null,null,"Закрытое акционерное общество \"Парок\""]
[null,null,null,"Общество с ограниченной ответственностью «Пеуру» Московский филиал"]
[null,null,null,"Представительство Закрытого акционерного общества \"ПЕЯ Интернешнл Б.В.\" (Нидерланды)"]
[null,null,null,"Автономная некоммерческая организация \"ПИР-Центр политических исследований\""]
[null,null,null,"г-н Плаппарт Александр"]
[null,null,null,"г-жа Пойдашева Елена Алексеевна"]
[null,null,null,"Посольство Албания"]
[null,null,null,"Посольство Исламской Республики Афганистан в РФ"]
[null,null,null,"Посольство Королевства Бахрейн"]
[null,null,null,"Посольство Королевства Бельгии, Военная Миссия связи НАТО"]
[null,null,null,"Посольство Бельгии. Торгово-экономическое представительством Фламандского региона"]
[null,null,null,"Посольство Республики Гватемалы в РФ"]
[null,null,null,"Посольство Египет"]
[null,null,null,"Посольство Республики Зимбабве в Российской Федерации"]
[null,null,null,"Посольство Индии"]
[null,null,null,"Посольство Ирак, Бюро культуры"]
[null,null,null,"Посольство Исламской Республики Иран в РФ"]
[null,null,null,"Посольство Испании"]
[null,null,null,"Посольство Италии"]
[null,null,null,"Посольство Канады"]
[null,null,null,"Посольство Катар"]
[null,null,null,"Посольство Кения"]
[null,null,null,"Посольство Ливии в РФ"]
[null,null,null,"Военный Атташат при Посольстве Малайзии в РФ"]
[null,null,null,"Посольство Малайзии в РФ,Торговое Представительство"]
[null,null,null,"Посольство Республики Мальта в РФ"]
[null,null,null,"Посольство Республики Конго"]
[null,null,null,"Посольство Республики Парагвай"]
[null,null,null,"Посольство Республики Сенегал в Российской Федерации"]
[null,null,null,"Посольство Соединенных Штатов Америки"]
[null,null,null,"Посольство Уганды"]
[null,null,null,"Посольство Уругвай"]
[null,null,null,"Посольство Чад"]
[null,null,null,"Посольство Черногории в РФ"]
[null,null,null,"Посольство Чили в РФ, Военный атташат"]
[null,null,null,"Посольство Республики Эль-Сальвадор в РФ"]
[null,null,null,"Посольство  Республики Южный Судан в РФ"]
[null,null,null,"Представительство «Поуру СиЭм Оу»"]
[null,null,null,"Представительство Министерства туризма Израиля"]
[null,null,null,"Общество с ограниченной ответственностью  \"Престо\""]
[null,null,null,"Общество с ограниченной ответственностью \"Приоритет Отель Менеджмент\""]
[null,null,null,"ПРОГРАММА РАЗВИТИЯ ОРГАНИЗАЦИИ ОБЪЕДИНЕННЫХ НАЦИЙ"]
[null,null,null,"Общество с ограниченной ответственностью \"ПРОМИФ Инк\""]
[null,null,null,"Общество с ограниченной ответственностью \"Промстройторг\""]
[null,null,null,"Московское представительство Радио и ТВ Австрии (ОРФ)"]
[null,null,null,"Общество с ограниченной ответственностью \"Раф\""]
[null,null,null,"Общество с ограниченной ответственностью \"Рашн Энерджи\""]
[null,null,null,"Общество с ограниченной ответственностью \"РБ ЛИЗИНГ\""]
[null,null,null,"Закрытое акционерное общество \"Региональная геолого-геофизическая экспедиция\""]
[null,null,null,"Общество с ограниченной ответственностью \"Региструм\""]
[null,null,null,"Общество с ограниченной ответственностью «Реккон-Д»"]
[null,null,null,"Московское представительство Общества для фармацевтическо химических изделий \"РЕПЛЕК ФАРМ ООО\" Скопье (Македония)"]
[null,null,null,"Московское Представительство фирмы «РеплекФарм»  АО"]
[null,null,null,"Представительство открытой акционерной компании с ограниченной ответственностью \"Риск Эдвайзори Груп плс\" (Великобритания)"]
[null,null,null,"ОАО АКБ \"РОСБАНК\""]
[null,null,null,"Российский Национальный Комитет по Черноморскому Экономическому Сотрудничеству"]
[null,null,null,"Некоммерческая организация \"Российский союз производителей соков\""]
[null,null,null,"Общество с ограниченной ответсвенностью \"РТС-тендер\""]
[null,null,null,"Общество с ограниченной ответственностью \"РусГидро Башкортостан Эффективность\""]
[null,null,null,"Общество с ограниченной ответственностью «Русское зерно»"]
[null,null,null,"Закрытое акционерное общество \"Международный внешнеэкономический консорциум Русьинтерн\""]
[null,null,null,"Общество с ограниченной ответственностью \"РусЭкспорт\""]
[null,null,null,"г-н Руцкой Дмитрий Александрович"]
[null,null,null,"Представительство «Сайпрус Эрвейз Паблик Лимитед»"]
[null,null,null,"Общество с ограниченной ответственностью \"Сайрус\""]
[null,null,null,"Представительство Компании с ограниченной ответственностью «Салаватекс Лимитед»"]
[null,null,null,"Общество с ограниченной ответственностью \"Санвелл\""]
[null,null,null,"Общество с ограниченной ответственностью \"Сандвик Майнинг энд Констракшн СНГ\""]
[null,null,null,"Фирма \"АО Сантэн\" (Santen Oy, Финляндия)"]
[null,null,null,"Представительство компании \"Сауди Ожер\""]
[null,null,null,"Общество с ограниченной ответственностью \"СВ информ\""]
[null,null,null,"Филиал Частной компании с ограниченной ответственностью \"Свифт Текникал (Россия) Лимитед\" (Великобритания)"]
[null,null,null,"Закрытое акционерное общество «Северная Инвестиционная Компания»"]
[null,null,null,"Представительство общества с ограниченной ответственностью \"СЕРВИ-ТЕПЕЧЕ, С.Л.\" (Испания)"]
[null,null,null,"г-н Сержио Бланко Озорио"]
[null,null,null,"г-жа Сивенкова Валентина Владимировна"]
[null,null,null,"г-жа Силина Людмила Борисовна"]
[null,null,null,"Общество с ограниченной ответственностью \"Сименс Энтерпрайз Коммьюникейшнс\" (PO-1004958)"]
[null,null,null,"Общество с ограниченной ответственностью «Сими Инжиниринг»"]
[null,null,null,"Представительство фирмы \"Сими Инжиринг\" (Италия)"]
[null,null,null,"Представительство Авиапредприятия \"Скандинавиан Эрлайнз Систем Дания-Норвегия-Швеция\""]
[null,null,null,"Московское представительство компании «Скоттиш Энтерпрайз», Великобритания"]
[null,null,null,"г-н  Слепак Григорий Борисович"]
[null,null,null,"г-жа Смоленкова Регина Николаевна"]
[null,null,null,"Закрытое акционерное общество \"СЦС Совинтел\""]
[null,null,null,"Общество с ограниченной ответственность «СЦС Совинтел»"]
[null,null,null,"Общество с ограниченной ответственностью Международный медицинский консультационный центр \"СОВМЕД ПЛЮС\""]
[null,null,null,"ООО \"Соджиц\""]
[null,null,null,"Представительство фирмы \"Соджиц Корпорейшн\" (Япония)"]
[null,null,null,"Закрытое акционерное общество \"Сони Электроникс\""]
[null,null,null,"Общество с ограниченной ответственностью \"Сопекса-Восток\""]
[null,null,null,"ООО \"Специализированная транспортно-экспедиторская компания\""]
[null,null,null,"Общество с ограниченной ответственностью \"Старстрой\""]
[null,null,null,"ООО \"СТАРТ ПАРК\""]
[null,null,null,"Общество с ограниченный ответственностью «СТРАТА ПАРТНЕРС»"]
[null,null,null,"Общество с ограниченной ответственностью \"Стройресурс\""]
[null,null,null,"г-н Суслин Павел Александрович"]
[null,null,null,"Представительство фирмы \"Тайрику Трейдинг Ко., Лтд\""]
[null,null,null,"\"ТВ Асахи корпорейшен\""]
[null,null,null,"ООО \"ТГК\""]
[null,null,null,"Торговый дом  \" КИНГ ФУД-М\""]
[null,null,null,"Закрытое акционерное общество \"Терминал\""]
[null,null,null,"г-н Ткаченко Владимир Анатольевич"]
[null,null,null,"Общество с ограниченной ответственностью  \"Топливный мир\""]
[null,null,null,"Торговое Представительство Посольства Пакистана"]
[null,null,null,"Закрытое акционерное общество Торговый дом  \"Межрегиональная трубная компания\""]
[null,null,null,"Общество с ограниченной ответственностью \"Торговый дом \"Русское зерно\""]
[null,null,null,"Торговый Отдел Посольства  Норвегии"]
[null,null,null,"Общество с ограниченной ответственностью \"ТОТАЛ ВОСТОК\""]
[null,null,null,"Представительство акционерного общества \"ТОТАЛЬ ЛЮБРИФИАН\""]
[null,null,null,"Представительство фирмы \"Тотиса дель Эквадор С.А.\""]
[null,null,null,"Представительство Акционерного Общества \"Тотиса Холдингс С.А.\""]
[null,null,null,"Представительство фирмы \"ТРАКОЗА\" (Бельгия)"]
[null,null,null,"Общество с ограниченной ответственностью \"Транслинк\""]
[null,null,null,"Общество с ограниченной ответственностью \"Транспортная Компания \"ВанКонтейнер\""]
[null,null,null,"Общество с ограниченной ответственностью \"ТрейдДаблер\""]
[null,null,null,"г-н Труняев Александр Николаевич"]
[null,null,null,"Представительство  Общества с ограниченной ответственностью \"ТСМ Коммуникейшн ГесмбХ\", Австрия"]
[null,null,null,"Туристический отдел Посольства Египта"]
[null,null,null,"Общество с ограниченной ответственностью \"Универсальный Экспедитор\""]
[null,null,null,"Представительство компании с ограниченной ответственностью \"Университи Рисэрч Ко., ЛЛС\""]
[null,null,null,"Общество с ограниченной ответсвенностью \"Уникальная мастерская красоты\""]
[null,null,null,"Общество с ограниченной ответственностью \"Управление транспортными активами\""]
[null,null,null,"г-н Фабрицио Ломбарди"]
[null,null,null,"Представительство Акционерного Общества Фармзавод Ельфа"]
[null,null,null,"Федеральное Государственное Унитарное Предприятие Национальный научный Центр Горного производства - Институт Горного Дела им. А.А. Скочинского"]
[null,null,null,"Представительство ООО \"ФестАльпине Ойрошталь ГмбХ\", Австрия"]
[null,null,null,"Представительство ООО \"Фест-Альпине Тюбуларс ГмбХ\""]
[null,null,null,"Общество с ограниченной ответственностью  \"Финкраска-ФК\""]
[null,null,null,"Представительство компании  \"Финмекканика АО\""]
[null,null,null,"Общество с ограниченной ответственностью   \"Фитнес система\""]
[null,null,null,"Аккредитованное представительство компании «ФМСи Технолоджис, Инк»"]
[null,null,null,"Представительство французской телекомпании (акционерное общество) \"ФРАНС ТЕЛЕВИЗЬОН\" (Корпункт)"]
[null,null,null,"г-н Франческо Эджиди"]
[null,null,null,"Представительство компании \"Ханимакс Интернэшнл Лимитед\""]
[null,null,null,"г-н Хеллмихь Флориан Вальтер Иоганнес"]
[null,null,null,"Московский корреспондентский пункт газеты \" Хельсингин Саномат\" (Финляндия)"]
[null,null,null,"г-жа Хираива Тиаки"]
[null,null,null,"Закрытое акционерное общество \"ХЛ Кемикалс\""]
[null,null,null,"Негосударственное образовательно учреждение \"Центр развития ребенка-детский сад с углубленным изучением английского языка\""]
[null,null,null,"Общество с ограниченной ответственностью \"Центральный рынок\""]
[null,null,null,"г-н Чассем Нзале Трифен Вальтер"]
[null,null,null,"Московское представительство компании  \"Шимадзу Европа ГмбХ\" (Германия)"]
[null,null,null,"г-н Широков Сергей Юрьевич"]
[null,null,null,"Представительство компании \"Шовен анкефарм ГмбХ\""]
[null,null,null,"Представительство компании \"Шрея Лайф Саенсиз Пвт. ЛТД\""]
[null,null,null,"Общество с ограниченной ответственностью \"Шрея Лайф Саенсиз\""]
[null,null,null,"Представительство Открытого акционерного общества \"Фармацевтический завод ЭГИС\" (Венгрия) г. Москва"]
[null,null,null,"Общество с ограниченной ответственностью \"Элба\""]
[null,null,null,"Представительство Компании с ограниченной ответственностью \"ЭЛОНГ КЕМИКАЛЗ ЛИМИТЕД\""]
[null,null,null,"Общество с ограниченной ответственностью \"Эльстер ГмбХ\""]
[null,null,null,"Московское представительство компании «ЭмСиЭс Оуверсиз Лимитед»"]
[null,null,null,"Московское представительство японской телерадиокомпании \"Эн-Эйч-Кей\""]
[null,null,null,"Представительство \"Эр Франс\""]
[null,null,null,"Общество с ограниченной ответсвенностью \"Эра-Павер\""]
[null,null,null,"Финская телерадиовещательная компания А/О \"Юлейсрадио\""]
[null,null,null,"Общество с ограниченной ответственностью \"Юридическая компания АПК Консалтинг\""]
[null,null,null,"Общество с ограниченной ответственностью \"Юридическая компания ВПК\""]
[null,null,null,"Общество с ограниченной ответственностью \"Юридический центр \"Вектор Право\""]

{"sheet":"Лист2","index":1,"n_rows":0,"n_cols":0,"rows_kept":0,"cut":false,"hidden":false,"merged":[]}

{"sheet":"Лист3","index":2,"n_rows":0,"n_cols":0,"rows_kept":0,"cut":false,"hidden":false,"merged":[]}